[Event "IIe Tournoi de GMI du C'Chartres Echecs"]
[Site "Chartres, France"]
[Date "2021.05.20"]
[Round "7.1"]
[White "Loiseau, Quentin"]
[Black "Shirazi, Kamran"]
[Result "1-0"]
[TimeControl "5400+30"]
[WhiteTitle "IM"]
[BlackTitle "IM"]
[WhiteElo "2455"]
[BlackElo "2349"]

1. e4 {[%clk 01:30:42]} {[%emt 00:00:17]} a6 {[%clk 01:24:15]} {[%emt
00:06:46]} 2. d4 {[%clk 01:29:50]} {[%emt 00:01:22]} b5 {[%clk 01:24:41]}
{[%emt 00:00:05]} 3. c4 {[%clk 01:21:32]} {[%emt 00:08:48]} Bb7 {[%clk
01:24:33]} {[%emt 00:00:38]} 4. f3 {[%clk 01:19:13]} {[%emt 00:02:49]} bxc4
{[%clk 01:09:31]} {[%emt 00:15:32]} 5. Bxc4 {[%clk 01:19:03]} {[%emt 00:00:39]}
e6 {[%clk 01:09:57]} {[%emt 00:00:04]} 6. Nc3 {[%clk 01:14:04]} {[%emt
00:05:29]} Nf6 {[%clk 01:05:02]} {[%emt 00:05:26]} 7. e5 {[%clk 01:00:31]}
{[%emt 00:14:04]} Nd5 {[%clk 01:04:54]} {[%emt 00:00:37]} 8. Nge2 {[%clk
01:00:23]} {[%emt 00:00:37]} Nxc3 {[%clk 01:02:53]} {[%emt 00:02:32]} 9. bxc3
{[%clk 00:58:43]} {[%emt 00:02:10]} Qh4+ {[%clk 01:02:46]} {[%emt 00:00:36]} 10.
g3 {[%clk 00:53:05]} {[%emt 00:06:08]} Qd8 {[%clk 00:56:26]} {[%emt 00:06:50]}
11. Rb1 {[%clk 00:48:18]} {[%emt 00:05:18]} Bxf3 {[%clk 00:55:10]} {[%emt
00:01:45]} 12. O-O {[%clk 00:47:40]} {[%emt 00:01:08]} Be4 {[%clk 00:54:48]}
{[%emt 00:00:52]} 13. Bd3 {[%clk 00:45:21]} {[%emt 00:02:50]} d5 {[%clk
00:43:25]} {[%emt 00:11:53]} 14. Bxe4 {[%clk 00:38:50]} {[%emt 00:07:01]} dxe4
{[%clk 00:43:49]} {[%emt 00:00:05]} 15. Qc2 {[%clk 00:38:33]} {[%emt 00:00:47]}
Be7 {[%clk 00:40:53]} {[%emt 00:03:27]} 16. Qxe4 {[%clk 00:38:31]} {[%emt
00:00:32]} Nd7 {[%clk 00:41:17]} {[%emt 00:00:06]} 17. Qg4 {[%clk 00:37:40]}
{[%emt 00:01:21]} g5 {[%clk 00:38:47]} {[%emt 00:02:59]} 18. Qh5 {[%clk
00:36:24]} {[%emt 00:01:45]} O-O {[%clk 00:38:59]} {[%emt 00:00:18]} 19. h4
{[%clk 00:33:08]} {[%emt 00:03:46]} f6 {[%clk 00:36:53]} {[%emt 00:02:37]} 20.
exf6 {[%clk 00:20:41]} {[%emt 00:12:57]} Nxf6 {[%clk 00:36:34]} {[%emt
00:00:49]} 21. Qxg5+ {[%clk 00:21:07]} {[%emt 00:00:04]} Kh8 {[%clk 00:37:01]}
{[%emt 00:00:03]} 22. Qe5 {[%clk 00:21:19]} {[%emt 00:00:18]} Qd5 {[%clk
00:35:34]} {[%emt 00:01:58]} 23. Bh6 {[%clk 00:19:09]} {[%emt 00:02:39]} Rf7
{[%clk 00:33:07]} {[%emt 00:02:57]} 24. Qxc7 {[%clk 00:13:22]} {[%emt
00:06:17]} Qxa2 {[%clk 00:33:17]} {[%emt 00:00:20]} 25. Rb8+ {[%clk 00:13:24]}
{[%emt 00:00:29]} 1-0

[Event "IIe Tournoi de GMI du C'Chartres Echecs"]
[Site "Chartres, France"]
[Date "2021.05.20"]
[Round "7.2"]
[White "David, Alberto"]
[Black "Vlachos, Anatole"]
[Result "1-0"]
[TimeControl "5400+30"]
[WhiteTitle "GM"]
[BlackTitle "IM"]
[WhiteElo "2517"]
[BlackElo "2438"]

1. e4 {[%clk 01:30:56]} {[%emt 00:00:03]} e5 {[%clk 01:30:52]} {[%emt
00:00:08]} 2. Nf3 {[%clk 01:31:20]} {[%emt 00:00:05]} Nc6 {[%clk 01:31:17]}
{[%emt 00:00:05]} 3. d4 {[%clk 01:31:41]} {[%emt 00:00:10]} exd4 {[%clk
01:31:40]} {[%emt 00:00:08]} 4. Nxd4 {[%clk 01:32:05]} {[%emt 00:00:05]} Nf6
{[%clk 01:29:43]} {[%emt 00:02:27]} 5. Nxc6 {[%clk 01:31:53]} {[%emt 00:00:43]}
bxc6 {[%clk 01:30:08]} {[%emt 00:00:05]} 6. e5 {[%clk 01:31:12]} {[%emt
00:01:11]} Qe7 {[%clk 01:30:32]} {[%emt 00:00:06]} 7. Qe2 {[%clk 01:31:34]}
{[%emt 00:00:08]} Nd5 {[%clk 01:30:58]} {[%emt 00:00:04]} 8. h4 {[%clk
01:31:03]} {[%emt 00:01:01]} c5 {[%clk 01:10:11]} {[%emt 00:21:18]} 9. c4
{[%clk 01:09:15]} {[%emt 00:22:19]} Nb6 {[%clk 01:10:26]} {[%emt 00:00:15]} 10.
Nc3 {[%clk 01:07:44]} {[%emt 00:02:00]} Ba6 {[%clk 01:05:35]} {[%emt 00:05:20]}
11. b3 {[%clk 01:03:43]} {[%emt 00:04:32]} O-O-O {[%clk 01:05:55]} {[%emt
00:00:10]} 12. Bg5 {[%clk 01:03:02]} {[%emt 00:01:11]} f6 {[%clk 01:05:56]}
{[%emt 00:00:30]} 13. exf6 {[%clk 01:02:35]} {[%emt 00:00:57]} Qf7 {[%clk
01:02:15]} {[%emt 00:04:10]} 14. O-O-O {[%clk 00:51:29]} {[%emt 00:11:36]} gxf6
{[%clk 01:02:30]} {[%emt 00:00:15]} 15. Qf3 {[%clk 00:49:12]} {[%emt 00:02:48]}
Bg7 {[%clk 01:01:22]} {[%emt 00:01:38]} 16. h5 {[%clk 00:43:13]} {[%emt
00:06:29]} Rhf8 {[%clk 00:49:31]} {[%emt 00:12:21]} 17. Be3 {[%clk 00:42:53]}
{[%emt 00:00:51]} d6 {[%clk 00:45:14]} {[%emt 00:04:47]} 18. Qf5+ {[%clk
00:35:55]} {[%emt 00:07:28]} Kb8 {[%clk 00:45:35]} {[%emt 00:00:09]} 19. h6
{[%clk 00:35:25]} {[%emt 00:00:59]} Bh8 {[%clk 00:44:53]} {[%emt 00:01:11]} 20.
Bd3 {[%clk 00:35:20]} {[%emt 00:00:36]} Rd7 {[%clk 00:37:04]} {[%emt 00:08:19]}
21. Rh5 {[%clk 00:30:52]} {[%emt 00:04:57]} Qe8 {[%clk 00:33:52]} {[%emt
00:03:42]} 22. Bd2 {[%clk 00:28:45]} {[%emt 00:02:37]} Re7 {[%clk 00:33:52]}
{[%emt 00:00:31]} 23. Qh3 {[%clk 00:28:34]} {[%emt 00:00:41]} f5 {[%clk
00:33:53]} {[%emt 00:00:29]} 24. Rxf5 {[%clk 00:24:34]} {[%emt 00:04:30]} Rg8
{[%clk 00:30:25]} {[%emt 00:03:58]} 25. Rf3 {[%clk 00:14:03]} {[%emt 00:11:01]}
Bb7 {[%clk 00:28:50]} {[%emt 00:02:05]} 26. Rg3 {[%clk 00:14:17]} {[%emt
00:00:16]} Rf8 {[%clk 00:29:14]} {[%emt 00:00:07]} 27. f4 {[%clk 00:08:20]}
{[%emt 00:06:26]} Qf7 {[%clk 00:29:16]} {[%emt 00:00:27]} 28. Kc2 {[%clk
00:06:27]} {[%emt 00:02:24]} Qf6 {[%clk 00:23:19]} {[%emt 00:06:27]} 29. Rg5
{[%clk 00:06:05]} {[%emt 00:00:52]} Qd4 {[%clk 00:22:14]} {[%emt 00:01:35]} 30.
Qg3 {[%clk 00:05:41]} {[%emt 00:00:54]} Bc6 {[%clk 00:16:37]} {[%emt 00:06:07]}
31. Rg8 {[%clk 00:04:30]} {[%emt 00:01:41]} Rxg8 {[%clk 00:16:57]} {[%emt
00:00:11]} 32. Qxg8+ {[%clk 00:04:55]} {[%emt 00:00:05]} Kb7 {[%clk 00:17:25]}
{[%emt 00:00:02]} 33. Re1 {[%clk 00:04:30]} {[%emt 00:00:54]} Rxe1 {[%clk
00:15:46]} {[%emt 00:02:08]} 34. Bxe1 {[%clk 00:04:56]} {[%emt 00:00:05]} d5
{[%clk 00:16:12]} {[%emt 00:00:04]} 35. Qxh7 {[%clk 00:04:18]} {[%emt
00:01:08]} dxc4 {[%clk 00:16:27]} {[%emt 00:00:15]} 36. Be4 {[%clk 00:04:06]}
{[%emt 00:00:41]} cxb3+ {[%clk 00:14:13]} {[%emt 00:02:44]} 37. axb3 {[%clk
00:04:31]} {[%emt 00:00:05]} Nd5 {[%clk 00:13:41]} {[%emt 00:01:02]} 38. Bxd5
{[%clk 00:04:17]} {[%emt 00:00:44]} Bxd5 {[%clk 00:14:08]} {[%emt 00:00:02]} 39.
Nxd5 {[%clk 00:04:15]} {[%emt 00:00:32]} Qb2+ {[%clk 00:14:25]} {[%emt
00:00:13]} 40. Kd1 {[%clk 00:04:40]} {[%emt 00:00:04]} Qxb3+ {[%clk 00:14:50]}
{[%emt 00:00:05]} 41. Ke2 {[%clk 00:04:57]} {[%emt 00:00:13]} Qa2+ {[%clk
00:10:37]} {[%emt 00:04:43]} 42. Kf3 {[%clk 00:02:43]} {[%emt 00:02:44]} Qxd5+
{[%clk 00:10:24]} {[%emt 00:00:43]} 43. Qe4 {[%clk 00:03:09]} {[%emt 00:00:04]}
Kc6 {[%clk 00:09:52]} {[%emt 00:01:02]} 44. g4 {[%clk 00:03:12]} {[%emt
00:00:27]} c4 {[%clk 00:10:11]} {[%emt 00:00:11]} 45. g5 {[%clk 00:03:17]}
{[%emt 00:00:25]} c3 {[%clk 00:10:35]} {[%emt 00:00:06]} 46. Bxc3 {[%clk
00:03:02]} {[%emt 00:00:46]} 1-0

[Event "IIe Tournoi de GMI du C'Chartres Echecs"]
[Site "Chartres, France"]
[Date "2021.05.20"]
[Round "7.4"]
[White "Duboue, Peio"]
[Black "Dgebuadze, Alexandre"]
[Result "0-1"]
[TimeControl "5400+30"]
[WhiteTitle "FM"]
[BlackTitle "GM"]
[WhiteElo "2431"]
[BlackElo "2490"]

1. e4 {[%clk 01:30:34]} {[%emt 00:00:26]} c5 {[%clk 01:30:53]} {[%emt
00:00:07]} 2. c3 {[%clk 01:31:00]} {[%emt 00:00:04]} d6 {[%clk 01:30:39]}
{[%emt 00:00:44]} 3. d4 {[%clk 01:31:15]} {[%emt 00:00:15]} Nf6 {[%clk
01:31:03]} {[%emt 00:00:07]} 4. Bd3 {[%clk 01:31:26]} {[%emt 00:00:19]} Nc6
{[%clk 01:31:21]} {[%emt 00:00:11]} 5. d5 {[%clk 01:31:08]} {[%emt 00:00:48]}
Ne5 {[%clk 01:31:26]} {[%emt 00:00:26]} 6. Bc2 {[%clk 01:31:33]} {[%emt
00:00:04]} g6 {[%clk 01:22:28]} {[%emt 00:09:28]} 7. f4 {[%clk 01:31:54]}
{[%emt 00:00:09]} Ned7 {[%clk 01:18:45]} {[%emt 00:04:13]} 8. Nf3 {[%clk
01:32:06]} {[%emt 00:00:18]} Qc7 {[%clk 01:18:05]} {[%emt 00:01:10]} 9. a4
{[%clk 01:31:07]} {[%emt 00:01:29]} Bg7 {[%clk 01:18:11]} {[%emt 00:00:24]} 10.
Na3 {[%clk 01:30:19]} {[%emt 00:01:18]} O-O {[%clk 01:17:59]} {[%emt 00:00:41]}
11. O-O {[%clk 01:29:23]} {[%emt 00:01:27]} a6 {[%clk 01:14:29]} {[%emt
00:04:00]} 12. Kh1 {[%clk 01:17:11]} {[%emt 00:12:41]} Rb8 {[%clk 01:08:14]}
{[%emt 00:06:46]} 13. c4 {[%clk 01:16:33]} {[%emt 00:01:07]} Re8 {[%clk
00:59:08]} {[%emt 00:09:36]} 14. Ng5 {[%clk 00:57:47]} {[%emt 00:19:17]} h6
{[%clk 00:37:07]} {[%emt 00:22:32]} 15. Nf3 {[%clk 00:56:52]} {[%emt 00:01:24]}
e5 {[%clk 00:33:34]} {[%emt 00:04:03]} 16. dxe6 {[%clk 00:55:03]} {[%emt
00:02:19]} Rxe6 {[%clk 00:31:41]} {[%emt 00:02:23]} 17. f5 {[%clk 00:52:36]}
{[%emt 00:02:57]} Re7 {[%clk 00:23:22]} {[%emt 00:08:48]} 18. fxg6 {[%clk
00:51:54]} {[%emt 00:01:13]} fxg6 {[%clk 00:23:47]} {[%emt 00:00:05]} 19. e5
{[%clk 00:49:42]} {[%emt 00:02:42]} dxe5 {[%clk 00:24:06]} {[%emt 00:00:10]} 20.
Bxg6 {[%clk 00:43:14]} {[%emt 00:06:58]} Nf8 {[%clk 00:24:15]} {[%emt
00:00:21]} 21. Nh4 {[%clk 00:42:18]} {[%emt 00:01:26]} Nxg6 {[%clk 00:19:28]}
{[%emt 00:05:18]} 22. Nxg6 {[%clk 00:42:45]} {[%emt 00:00:04]} Rf7 {[%clk
00:18:53]} {[%emt 00:01:04]} 23. Nxe5 {[%clk 00:39:02]} {[%emt 00:04:14]} Bg4
{[%clk 00:17:50]} {[%emt 00:01:32]} 24. Qe1 {[%clk 00:31:45]} {[%emt 00:07:47]}
Re8 {[%clk 00:09:45]} {[%emt 00:08:34]} 25. Bf4 {[%clk 00:32:05]} {[%emt
00:00:10]} Rfe7 {[%clk 00:09:57]} {[%emt 00:00:18]} 26. Nxg4 {[%clk 00:29:58]}
{[%emt 00:02:37]} Qxf4 {[%clk 00:09:20]} {[%emt 00:01:07]} 27. Qxe7 {[%clk
00:21:09]} {[%emt 00:09:20]} Qxf1+ {[%clk 00:09:36]} {[%emt 00:00:14]} 28. Rxf1
{[%clk 00:21:38]} {[%emt 00:00:01]} Rxe7 {[%clk 00:10:01]} {[%emt 00:00:05]} 29.
Nxf6+ {[%clk 00:20:30]} {[%emt 00:01:38]} Bxf6 {[%clk 00:10:26]} {[%emt
00:00:05]} 30. Nc2 {[%clk 00:19:31]} {[%emt 00:01:30]} Bxb2 {[%clk 00:10:35]}
{[%emt 00:00:21]} 31. Re1 {[%clk 00:19:36]} {[%emt 00:00:25]} Rd7 {[%clk
00:09:21]} {[%emt 00:01:43]} 32. g4 {[%clk 00:16:39]} {[%emt 00:03:27]} Rd2
{[%clk 00:08:54]} {[%emt 00:00:56]} 33. Ne3 {[%clk 00:17:00]} {[%emt 00:00:09]}
Bf6 {[%clk 00:04:11]} {[%emt 00:05:11]} 34. Nf5 {[%clk 00:16:09]} {[%emt
00:01:24]} Rc2 {[%clk 00:01:06]} {[%emt 00:03:36]} 35. Re6 {[%clk 00:15:16]}
{[%emt 00:01:22]} Bg5 {[%clk 00:01:07]} {[%emt 00:00:26]} 36. h4 {[%clk
00:15:19]} {[%emt 00:00:29]} Bc1 {[%clk 00:00:59]} {[%emt 00:00:38]} 37. Re8+
{[%clk 00:07:31]} {[%emt 00:08:19]} Kf7 {[%clk 00:00:42]} {[%emt 00:00:46]} 38.
Rb8 {[%clk 00:06:32]} {[%emt 00:01:30]} Kf6 {[%clk 00:00:43]} {[%emt 00:00:29]}
39. Rxb7 {[%clk 00:05:12]} {[%emt 00:01:51]} Rxc4 {[%clk 00:00:54]} {[%emt
00:00:19]} 40. Rb6+ {[%clk 00:05:20]} {[%emt 00:00:21]} Ke5 {[%clk 00:01:14]}
{[%emt 00:00:07]} 41. Nxh6 {[%clk 00:05:38]} {[%emt 00:00:15]} Bxh6 {[%clk
00:01:33]} {[%emt 00:00:12]} 42. Rxh6 {[%clk 00:06:05]} {[%emt 00:00:02]} Rxg4
{[%clk 00:01:32]} {[%emt 00:00:30]} 43. Rxa6 {[%clk 00:05:53]} {[%emt
00:00:43]} c4 {[%clk 00:01:29]} {[%emt 00:00:33]} 44. Kh2 {[%clk 00:02:13]}
{[%emt 00:04:10]} Kd5 {[%clk 00:01:27]} {[%emt 00:00:31]} 45. Ra8 {[%clk
00:00:43]} {[%emt 00:02:02]} c3 {[%clk 00:01:06]} {[%emt 00:00:50]} 46. Rd8+
{[%clk 00:01:10]} {[%emt 00:00:03]} Ke4 {[%clk 00:01:23]} {[%emt 00:00:10]} 47.
Kh3 {[%clk 00:01:00]} {[%emt 00:00:43]} Rg1 {[%clk 00:01:21]} {[%emt 00:00:32]}
48. Rc8 {[%clk 00:01:03]} {[%emt 00:00:27]} Kd3 {[%clk 00:01:37]} {[%emt
00:00:12]} 49. Kh2 {[%clk 00:00:49]} {[%emt 00:00:46]} Rg4 {[%clk 00:01:49]}
{[%emt 00:00:17]} 50. Kh3 {[%clk 00:01:09]} {[%emt 00:00:11]} Rc4 {[%clk
00:01:47]} {[%emt 00:00:32]} 51. Rd8+ {[%clk 00:01:36]} {[%emt 00:00:04]} Rd4
{[%clk 00:02:10]} {[%emt 00:00:06]} 52. Rc8 {[%clk 00:00:44]} {[%emt 00:01:23]}
c2 {[%clk 00:02:25]} {[%emt 00:00:14]} 53. Rxc2 {[%clk 00:01:12]} {[%emt
00:00:02]} Kxc2 {[%clk 00:02:50]} {[%emt 00:00:04]} 54. a5 {[%clk 00:01:41]}
Kd3 {[%clk 00:02:42]} {[%emt 00:00:39]} 55. a6 {[%clk 00:02:07]} {[%emt
00:00:05]} Ra4 {[%clk 00:02:54]} {[%emt 00:00:17]} 56. h5 {[%clk 00:02:32]}
{[%emt 00:00:05]} Ke4 {[%clk 00:03:07]} {[%emt 00:00:17]} 57. Kg4 {[%clk
00:02:59]} {[%emt 00:00:04]} Ke5+ {[%clk 00:02:17]} {[%emt 00:01:19]} 58. Kg5
{[%clk 00:03:25]} {[%emt 00:00:04]} Ke6 {[%clk 00:01:40]} {[%emt 00:01:07]} 59.
Kg6 {[%clk 00:03:51]} {[%emt 00:00:04]} Rg4 {[%clk 00:01:44]} {[%emt 00:00:25]}
60. Kh7 {[%clk 00:02:16]} {[%emt 00:02:06]} Kf7 {[%clk 00:02:05]} {[%emt
00:00:09]} 0-1

[Event "IIe Tournoi de GMI du C'Chartres Echecs"]
[Site "Chartres, France"]
[Date "2021.05.20"]
[Round "7.5"]
[White "Stephan, Victor"]
[Black "Milliet, Sophie"]
[Result "1-0"]
[TimeControl "5400+30"]
[WhiteTitle "IM"]
[BlackTitle "IM"]
[WhiteElo "2430"]
[BlackElo "2390"]

1. d4 {[%clk 01:30:55]} {[%emt 00:00:03]} Nf6 {[%clk 01:30:56]} {[%emt
00:00:05]} 2. Nf3 {[%clk 01:31:13]} {[%emt 00:00:12]} e6 {[%clk 01:28:52]}
{[%emt 00:02:35]} 3. Bg5 {[%clk 01:31:28]} {[%emt 00:00:15]} h6 {[%clk
01:28:28]} {[%emt 00:00:54]} 4. Bh4 {[%clk 01:30:36]} {[%emt 00:01:21]} b6
{[%clk 01:25:51]} {[%emt 00:03:08]} 5. Nbd2 {[%clk 01:27:04]} {[%emt 00:04:01]}
Bb7 {[%clk 01:25:08]} {[%emt 00:01:15]} 6. e3 {[%clk 01:25:51]} {[%emt
00:01:42]} Be7 {[%clk 01:20:47]} {[%emt 00:04:52]} 7. Bd3 {[%clk 01:22:31]}
{[%emt 00:03:48]} g5 {[%clk 01:15:26]} {[%emt 00:05:51]} 8. Bg3 {[%clk
01:22:37]} {[%emt 00:00:24]} g4 {[%clk 01:15:41]} {[%emt 00:00:16]} 9. Nh4
{[%clk 01:10:51]} {[%emt 00:12:15]} Rg8 {[%clk 01:15:36]} {[%emt 00:00:36]} 10.
h3 {[%clk 01:10:13]} {[%emt 00:01:07]} Nh5 {[%clk 01:15:17]} {[%emt 00:00:50]}
11. hxg4 {[%clk 01:08:13]} {[%emt 00:02:29]} Nxg3 {[%clk 01:15:43]} {[%emt
00:00:04]} 12. fxg3 {[%clk 01:08:34]} {[%emt 00:00:09]} Bd6 {[%clk 01:14:55]}
{[%emt 00:01:18]} 13. Nf1 {[%clk 00:56:34]} {[%emt 00:12:29]} Qg5 {[%clk
01:13:22]} {[%emt 00:02:03]} 14. Be2 {[%clk 00:53:23]} {[%emt 00:03:41]} h5
{[%clk 01:01:41]} {[%emt 00:12:12]} 15. gxh5 {[%clk 00:48:18]} {[%emt
00:05:34]} Bxg3+ {[%clk 01:01:25]} {[%emt 00:00:46]} 16. Nxg3 {[%clk 00:48:17]}
{[%emt 00:00:30]} Qxg3+ {[%clk 01:01:10]} {[%emt 00:00:46]} 17. Kd2 {[%clk
00:48:18]} {[%emt 00:00:29]} Nc6 {[%clk 00:50:07]} {[%emt 00:11:33]} 18. Qf1
{[%clk 00:44:04]} {[%emt 00:04:44]} O-O-O {[%clk 00:46:33]} {[%emt 00:04:05]}
19. c3 {[%clk 00:40:47]} {[%emt 00:03:46]} Ne7 {[%clk 00:35:59]} {[%emt
00:11:04]} 20. Qxf7 {[%clk 00:35:21]} {[%emt 00:05:55]} Nd5 {[%clk 00:34:02]}
{[%emt 00:02:28]} 21. Rh3 {[%clk 00:27:27]} {[%emt 00:08:23]} Qg5 {[%clk
00:33:56]} {[%emt 00:00:37]} 22. Ng6 {[%clk 00:26:17]} {[%emt 00:01:40]} Kb8
{[%clk 00:18:16]} {[%emt 00:16:11]} 23. Rf1 {[%clk 00:19:48]} {[%emt 00:06:59]}
Qxg2 {[%clk 00:17:41]} {[%emt 00:01:05]} 24. Rhf3 {[%clk 00:18:40]} {[%emt
00:01:38]} a5 {[%clk 00:06:35]} {[%emt 00:11:37]} 25. a3 {[%clk 00:17:09]}
{[%emt 00:02:01]} b5 {[%clk 00:02:59]} {[%emt 00:04:06]} 26. Nf4 {[%clk
00:10:31]} {[%emt 00:07:07]} Qg5 {[%clk 00:02:08]} {[%emt 00:01:21]} 27. Nxd5
{[%clk 00:09:56]} {[%emt 00:01:06]} Qxd5 {[%clk 00:02:37]} {[%emt 00:00:01]} 28.
R3f2 {[%clk 00:08:38]} {[%emt 00:01:47]} Qb3 {[%clk 00:01:19]} {[%emt
00:01:49]} 29. Kc1 {[%clk 00:08:48]} {[%emt 00:00:19]} Be4 {[%clk 00:01:38]}
{[%emt 00:00:11]} 30. Bf3 {[%clk 00:07:09]} {[%emt 00:02:08]} Bd3 {[%clk
00:00:43]} {[%emt 00:01:25]} 31. Rd1 {[%clk 00:04:25]} {[%emt 00:03:15]} Rdf8
{[%clk 00:01:08]} {[%emt 00:00:05]} 32. Qxg8 {[%clk 00:02:43]} {[%emt
00:02:12]} Rxg8 {[%clk 00:01:31]} {[%emt 00:00:08]} 33. Rxd3 {[%clk 00:03:10]}
{[%emt 00:00:02]} b4 {[%clk 00:01:09]} {[%emt 00:00:53]} 34. Bd1 {[%clk
00:02:32]} {[%emt 00:01:07]} Qc4 {[%clk 00:00:51]} {[%emt 00:00:47]} 35. Rfd2
{[%clk 00:02:00]} {[%emt 00:01:04]} Rg1 {[%clk 00:00:44]} {[%emt 00:00:38]} 36.
axb4 {[%clk 00:01:23]} {[%emt 00:01:07]} axb4 {[%clk 00:01:06]} {[%emt
00:00:08]} 37. d5 {[%clk 00:01:15]} {[%emt 00:00:37]} e5 {[%clk 00:00:59]}
{[%emt 00:00:37]} 38. b3 {[%clk 00:00:47]} {[%emt 00:00:58]} Qxb3 {[%clk
00:00:49]} {[%emt 00:00:40]} 39. cxb4 {[%clk 00:01:12]} {[%emt 00:00:05]} Qc4+
{[%clk 00:00:52]} {[%emt 00:00:26]} 40. Kb2 {[%clk 00:01:33]} {[%emt 00:00:10]}
Kc8 {[%clk 00:00:44]} {[%emt 00:00:37]} 41. Rb3 {[%clk 00:01:14]} {[%emt
00:00:50]} d6 {[%clk 00:00:39]} {[%emt 00:00:36]} 42. Bc2 {[%clk 00:01:20]}
{[%emt 00:00:24]} Rh1 {[%clk 00:00:47]} {[%emt 00:00:21]} 43. b5 {[%clk
00:01:32]} {[%emt 00:00:19]} Qa4 {[%clk 00:00:56]} {[%emt 00:00:20]} 44. Bd1
{[%clk 00:01:24]} {[%emt 00:00:38]} Qa5 {[%clk 00:00:58]} {[%emt 00:00:29]} 45.
Rdd3 {[%clk 00:01:05]} {[%emt 00:00:48]} Rh2+ {[%clk 00:01:12]} {[%emt
00:00:16]} 46. Bc2 {[%clk 00:01:31]} {[%emt 00:00:04]} Kd8 {[%clk 00:00:42]}
{[%emt 00:00:59]} 47. e4 {[%clk 00:01:17]} {[%emt 00:00:44]} Qe1 {[%clk
00:00:50]} {[%emt 00:00:22]} 48. b6 {[%clk 00:00:56]} {[%emt 00:00:51]} cxb6
{[%clk 00:01:15]} {[%emt 00:00:05]} 49. Rdc3 {[%clk 00:01:07]} {[%emt
00:00:18]} Rh1 {[%clk 00:01:19]} {[%emt 00:00:27]} 50. Rb4 {[%clk 00:01:11]}
{[%emt 00:00:26]} Qa1+ {[%clk 00:00:42]} {[%emt 00:01:07]} 51. Kb3 {[%clk
00:01:39]} {[%emt 00:00:01]} Qa5 {[%clk 00:00:40]} {[%emt 00:00:26]} 52. Ra4
{[%clk 00:01:38]} {[%emt 00:00:38]} Qb5+ {[%clk 00:01:03]} {[%emt 00:00:08]} 53.
Rb4 {[%clk 00:02:04]} {[%emt 00:00:04]} Qa6 {[%clk 00:00:59]} {[%emt 00:00:33]}
54. Bd3 {[%clk 00:01:32]} {[%emt 00:01:03]} Qa1 {[%clk 00:01:03]} {[%emt
00:00:26]} 55. Rc6 {[%clk 00:01:20]} {[%emt 00:00:42]} Rh3 {[%clk 00:00:43]}
{[%emt 00:00:49]} 56. Rc3 {[%clk 00:01:22]} {[%emt 00:00:28]} Qd1+ {[%clk
00:00:54]} {[%emt 00:00:19]} 57. Kc4 {[%clk 00:01:23]} {[%emt 00:00:30]} Ke7
{[%clk 00:00:35]} {[%emt 00:00:48]} 58. Rxb6 {[%clk 00:01:25]} {[%emt
00:00:28]} Qa4+ {[%clk 00:00:51]} {[%emt 00:00:13]} 59. Rb4 {[%clk 00:01:53]}
{[%emt 00:00:03]} Qa6+ {[%clk 00:01:10]} {[%emt 00:00:08]} 60. Rb5 {[%clk
00:02:14]} {[%emt 00:00:11]} Qa4+ {[%clk 00:00:35]} {[%emt 00:01:06]} 61. Rb4
{[%clk 00:02:40]} {[%emt 00:00:04]} Qa6+ {[%clk 00:00:58]} {[%emt 00:00:07]} 62.
Rb5 {[%clk 00:03:09]} Kf6 {[%clk 00:00:51]} {[%emt 00:00:37]} 63. Kb4 {[%clk
00:02:52]} {[%emt 00:00:47]} Qa7 {[%clk 00:01:14]} {[%emt 00:00:07]} 64. Bc2
{[%clk 00:01:22]} {[%emt 00:02:00]} Qd4+ {[%clk 00:01:12]} {[%emt 00:00:32]} 65.
Rc4 {[%clk 00:01:51]} {[%emt 00:00:02]} Qa1 {[%clk 00:00:51]} {[%emt 00:00:50]}
66. Bb3 {[%clk 00:01:52]} {[%emt 00:00:28]} Qb2 {[%clk 00:01:01]} {[%emt
00:00:20]} 67. Ka4 {[%clk 00:02:13]} {[%emt 00:00:10]} Rh1 {[%clk 00:00:59]}
{[%emt 00:00:32]} 68. Rbb4 {[%clk 00:01:56]} {[%emt 00:00:46]} Qa1+ {[%clk
00:00:36]} {[%emt 00:00:53]} 69. Kb5 {[%clk 00:02:24]} {[%emt 00:00:02]} Rxh5
{[%clk 00:00:40]} {[%emt 00:00:27]} 70. Rc6 {[%clk 00:02:26]} {[%emt 00:00:28]}
Rh8 {[%clk 00:00:41]} {[%emt 00:00:29]} 71. Rxd6+ {[%clk 00:02:32]} {[%emt
00:00:24]} Kg5 {[%clk 00:01:07]} {[%emt 00:00:03]} 72. Rb6 {[%clk 00:02:17]}
{[%emt 00:00:45]} Rc8 {[%clk 00:00:54]} {[%emt 00:00:43]} 73. Rc4 {[%clk
00:01:01]} {[%emt 00:02:04]} Qf1 {[%clk 00:01:28]} {[%emt 00:00:17]} 74. Rbc6
{[%clk 00:00:40]} {[%emt 00:00:51]} Rb8+ {[%clk 00:01:47]} {[%emt 00:00:11]} 75.
Rb6 {[%clk 00:01:08]} {[%emt 00:00:02]} Ra8 {[%clk 00:01:13]} {[%emt 00:01:04]}
76. Ra6 {[%clk 00:01:01]} {[%emt 00:00:38]} Rf8 {[%clk 00:01:25]} {[%emt
00:00:17]} 77. Rb6 {[%clk 00:00:48]} {[%emt 00:00:44]} Qd3 {[%clk 00:01:31]}
{[%emt 00:00:22]} 78. Kb4 {[%clk 00:00:44]} {[%emt 00:00:35]} Rf3 {[%clk
00:01:08]} {[%emt 00:00:53]} 79. Ba4 {[%clk 00:00:37]} {[%emt 00:00:38]} Re3
{[%clk 00:00:46]} {[%emt 00:00:52]} 80. d6 {[%clk 00:00:44]} {[%emt 00:00:23]}
Rxe4 {[%clk 00:00:35]} {[%emt 00:00:41]} 81. Rxe4 {[%clk 00:00:52]} {[%emt
00:00:22]} Qxe4+ {[%clk 00:01:04]} 82. Ka5 {[%clk 00:00:49]} {[%emt 00:00:33]}
Qd5+ {[%clk 00:01:12]} {[%emt 00:00:23]} 83. Bb5 {[%clk 00:01:02]} {[%emt
00:00:16]} e4 {[%clk 00:00:50]} {[%emt 00:00:52]} 84. d7 {[%clk 00:01:09]}
{[%emt 00:00:24]} e3 {[%clk 00:00:43]} {[%emt 00:00:37]} 85. Re6 {[%clk
00:00:50]} {[%emt 00:00:48]} Qd2+ {[%clk 00:00:32]} {[%emt 00:00:41]} 86. Kb6
{[%clk 00:00:48]} {[%emt 00:00:32]} Qd4+ {[%clk 00:00:42]} {[%emt 00:00:20]} 87.
Ka6 {[%clk 00:00:55]} {[%emt 00:00:23]} Kf4 {[%emt 00:00:41]} 88. Re8 {[%clk
00:00:38]} {[%emt 00:00:46]} Qd6+ {[%clk 00:00:34]} {[%emt 00:00:28]} 89. Kb7
{[%clk 00:01:05]} {[%emt 00:00:03]} e2 {[%clk 00:00:31]} {[%emt 00:00:33]} 90.
Rxe2 {[%clk 00:01:08]} {[%emt 00:00:26]} Qd5+ {[%clk 00:00:54]} {[%emt
00:00:08]} 91. Bc6 {[%clk 00:01:15]} {[%emt 00:00:22]} Qa5 {[%clk 00:00:31]}
{[%emt 00:00:53]} 92. Re8 {[%clk 00:01:13]} {[%emt 00:00:32]} Qb4+ {[%clk
00:00:58]} {[%emt 00:00:03]} 93. Kc8 {[%clk 00:01:26]} {[%emt 00:00:17]} 1-0